[Event "Titled Tuesday Blitz May 16 Early 2023"]
[White "Flis, Pawel"]
[Black "Smith, Shreyas"]
[WhiteFideId "1112864"]
[BlackFideId "7400713"]
[WhiteElo "1822"]
[BlackElo "2151"]
[Result "0-1"]
[Round "09"]
[TimeControl "180+2"]
[Date "2023.05.16"]
[WhiteClock "0:00:00"]
[BlackClock "0:00:02"]

1. e4 {[%clk 0:03:00]}  c5 {[%clk 0:02:59]} 2. Nf3 {[%clk 0:03:00]}  Nc6 {[%clk 0:02:59]} 3. d4 {[%clk 0:03:01]}  cxd4 {[%clk 0:03:00]} 4. Nxd4 {[%clk 0:03:00]}  e5 {[%clk 0:03:01]} 5. Nb5 {[%clk 0:02:59]}  d6 {[%clk 0:03:01]} 6. c4 {[%clk 0:02:56]}  Be7 {[%clk 0:03:00]} 7. Be2 {[%clk 0:02:55]}  Nf6 {[%clk 0:02:57]} 8. N1c3 {[%clk 0:02:54]}  a6 {[%clk 0:02:57]} 9. Na3 {[%clk 0:02:54]}  O-O {[%clk 0:02:56]} 10. O-O {[%clk 0:02:54]}  Nd4 {[%clk 0:02:54]} 11. Nc2 {[%clk 0:02:53]}  Nxe2+ {[%clk 0:02:53]} 12. Qxe2 {[%clk 0:02:53]}  Be6 {[%clk 0:02:51]} 13. Ne3 {[%clk 0:02:50]}  Rc8 {[%clk 0:02:44]} 14. Ned5 {[%clk 0:02:47]}  Nd7 {[%clk 0:02:41]} 15. Be3 {[%clk 0:02:31]}  Bg5 {[%clk 0:02:38]} 16. Rad1 {[%clk 0:02:21]}  Bxe3 {[%clk 0:02:16]} 17. Nxe3 {[%clk 0:02:20]}  Nf6 {[%clk 0:02:02]} 18. Ned5 {[%clk 0:02:11]}  Nxd5 {[%clk 0:01:49]} 19. Nxd5 {[%clk 0:02:03]}  f5 {[%clk 0:01:48]} 20. b3 {[%clk 0:01:55]}  f4 {[%clk 0:01:12]} 21. f3 {[%clk 0:01:52]}  g5 {[%clk 0:01:02]} 22. Qf2 {[%clk 0:01:52]}  Rc5 {[%clk 0:00:54]} 23. Nb4 {[%clk 0:01:29]}  Qe7 {[%clk 0:00:30]} 24. a4 {[%clk 0:01:22]}  g4 {[%clk 0:00:26]} 25. Rd2 {[%clk 0:01:02]}  Kh8 {[%clk 0:00:25]} 26. Rfd1 {[%clk 0:00:59]}  gxf3 {[%clk 0:00:23]} 27. Qxf3 {[%clk 0:00:52]}  Qh4 {[%clk 0:00:19]} 28. Qf2 {[%clk 0:00:38]}  Qg5 {[%clk 0:00:13]} 29. Rxd6 {[%clk 0:00:31]}  Rc7 {[%clk 0:00:08]} 30. Rxe6 {[%clk 0:00:29]}  Rg7 {[%clk 0:00:09]} 31. Rd5 {[%clk 0:00:18]}  f3 {[%clk 0:00:08]} 32. g3 {[%clk 0:00:17]}  Qc1+ {[%clk 0:00:07]} 33. Qf1 {[%clk 0:00:16]}  f2+ {[%clk 0:00:07]} 34. Kg2 {[%clk 0:00:16]}  Qc3 {[%clk 0:00:07]} 35. Nd3 {[%clk 0:00:14]}  Qd2 {[%clk 0:00:05]} 36. Nxe5 {[%clk 0:00:11]}  Qe3 {[%clk 0:00:03]} 37. Rd7 {[%clk 0:00:09]}  Qxe4+ {[%clk 0:00:02]} 38. Kh3 {[%clk 0:00:07]}  Qf5+ {[%clk 0:00:02]} 39. Kg2 {[%clk 0:00:05]}  Qxe6 {[%clk 0:00:03]} 40. Rxg7 {[%clk 0:00:04]}  Kxg7 {[%clk 0:00:04]} 41. Nf3 {[%clk 0:00:03]}  Qe4 {[%clk 0:00:03]} 42. Qa1+ {[%clk 0:00:03]}  Kg6 {[%clk 0:00:03]} 43. Qc3 {[%clk 0:00:00]}  Rxf3 {[%clk 0:00:02]} 0-1


[Site "https://www.chess.com"]

[Event "Titled Tuesday Blitz May 16 Early 2023"]
[White "Floresvillar Gonzalez, Luis Migu"]
[Black "Mike24147"]
[WhiteFideId "5100542"]
[WhiteElo "2040"]
[BlackElo "2318"]
[Result "1-0"]
[Round "09"]
[TimeControl "180+2"]
[Date "2023.05.16"]
[WhiteClock "0:01:04"]
[BlackClock "0:00:35"]

1. d4 {[%clk 0:03:00]}  d5 {[%clk 0:02:58]} 2. c3 {[%clk 0:02:59]}  Nf6 {[%clk 0:02:58]} 3. Bg5 {[%clk 0:02:59]}  Ne4 {[%clk 0:02:57]} 4. h4 {[%clk 0:02:59]}  c5 {[%clk 0:02:57]} 5. e3 {[%clk 0:02:55]}  Qb6 {[%clk 0:02:57]} 6. Qb3 {[%clk 0:02:54]}  c4 {[%clk 0:02:50]} 7. Qxb6 {[%clk 0:02:53]}  axb6 {[%clk 0:02:51]} 8. Nd2 {[%clk 0:02:52]}  Nxd2 {[%clk 0:02:40]} 9. Kxd2 {[%clk 0:02:51]}  b5 {[%clk 0:02:41]} 10. a3 {[%clk 0:02:49]}  Bf5 {[%clk 0:02:39]} 11. f3 {[%clk 0:02:42]}  h5 {[%clk 0:02:37]} 12. g3 {[%clk 0:02:36]}  e6 {[%clk 0:02:34]} 13. Re1 {[%clk 0:02:33]}  Bg6 {[%clk 0:02:14]} 14. e4 {[%clk 0:02:30]}  Kd7 {[%clk 0:02:15]} 15. Bh3 {[%clk 0:02:28]}  Kc6 {[%clk 0:02:08]} 16. exd5+ {[%clk 0:02:20]}  exd5 {[%clk 0:02:02]} 17. Ne2 {[%clk 0:02:20]}  Nd7 {[%clk 0:02:01]} 18. Nf4 {[%clk 0:02:20]}  Nb6 {[%clk 0:01:53]} 19. Be7 {[%clk 0:02:13]}  Bd3 {[%clk 0:01:38]} 20. Bxf8 {[%clk 0:02:09]}  Rhxf8 {[%clk 0:01:37]} 21. Nxd3 {[%clk 0:02:09]}  cxd3 {[%clk 0:01:37]} 22. Kxd3 {[%clk 0:02:07]}  Nc4 {[%clk 0:01:37]} 23. Kc2 {[%clk 0:02:05]}  Rfe8 {[%clk 0:01:35]} 24. Bf5 {[%clk 0:01:59]}  g6 {[%clk 0:01:31]} 25. Bd3 {[%clk 0:01:58]}  Nd6 {[%clk 0:01:29]} 26. Kd2 {[%clk 0:01:47]}  Nc4+ {[%clk 0:01:27]} 27. Bxc4 {[%clk 0:01:46]}  bxc4 {[%clk 0:01:28]} 28. Rxe8 {[%clk 0:01:44]}  Rxe8 {[%clk 0:01:28]} 29. Re1 {[%clk 0:01:44]}  Rxe1 {[%clk 0:01:28]} 30. Kxe1 {[%clk 0:01:43]}  Kb5 {[%clk 0:01:28]} 31. Kd2 {[%clk 0:01:42]}  Ka4 {[%clk 0:01:28]} 32. Kc2 {[%clk 0:01:41]}  f5 {[%clk 0:01:21]} 33. f4 {[%clk 0:01:34]}  b6 {[%clk 0:01:21]} 34. Kc1 {[%clk 0:01:31]}  Kb3 {[%clk 0:01:21]} 35. Kb1 {[%clk 0:01:29]}  b5 {[%clk 0:01:21]} 36. Kc1 {[%clk 0:01:24]}  Ka2 {[%clk 0:01:19]} 37. Kc2 {[%clk 0:01:24]}  Ka1 {[%clk 0:01:16]} 38. b3 {[%clk 0:01:05]}  Ka2 {[%clk 0:00:41]} 39. bxc4 {[%clk 0:01:05]}  dxc4 {[%clk 0:00:37]} 40. d5 {[%clk 0:01:04]}  Kxa3 {[%clk 0:00:35]} 41. d6 {[%clk 0:01:04]} 1-0


[Site "https://www.chess.com"]

[Event "Titled Tuesday Blitz May 16 Early 2023"]
[White "rionelG"]
[Black "Kopczynski, Michal"]
[BlackFideId "1124200"]
[WhiteElo "2221"]
[BlackElo "2212"]
[Result "1-0"]
[Round "09"]
[TimeControl "180+2"]
[Date "2023.05.16"]
[WhiteClock "0:00:07"]
[BlackClock "0:00:05"]

1. e4 {[%clk 0:02:47]}  b6 {[%clk 0:02:59]} 2. d3 {[%clk 0:02:46]}  Bb7 {[%clk 0:03:00]} 3. Nd2 {[%clk 0:02:46]}  e6 {[%clk 0:03:00]} 4. g3 {[%clk 0:02:47]}  Nf6 {[%clk 0:03:01]} 5. Bg2 {[%clk 0:02:48]}  d5 {[%clk 0:03:01]} 6. Ngf3 {[%clk 0:02:48]}  dxe4 {[%clk 0:03:01]} 7. Ng5 {[%clk 0:02:48]}  Nbd7 {[%clk 0:02:57]} 8. O-O {[%clk 0:02:43]}  Be7 {[%clk 0:02:54]} 9. Ngxe4 {[%clk 0:02:39]}  Nxe4 {[%clk 0:02:52]} 10. Nxe4 {[%clk 0:02:38]}  Rb8 {[%clk 0:02:51]} 11. Qe2 {[%clk 0:02:32]}  O-O {[%clk 0:02:51]} 12. b3 {[%clk 0:02:23]}  c5 {[%clk 0:02:50]} 13. Bb2 {[%clk 0:02:22]}  Nf6 {[%clk 0:02:44]} 14. Be5 {[%clk 0:02:16]}  Nxe4 {[%clk 0:02:23]} 15. Bxb8 {[%clk 0:01:44]}  Nc3 {[%clk 0:02:22]} 16. Qd2 {[%clk 0:01:44]}  Bxg2 {[%clk 0:02:20]} 17. Kxg2 {[%clk 0:01:40]}  Qxb8 {[%clk 0:02:12]} 18. Qxc3 {[%clk 0:01:25]}  Bf6 {[%clk 0:02:12]} 19. Qc4 {[%clk 0:01:25]}  Bxa1 {[%clk 0:02:11]} 20. Rxa1 {[%clk 0:01:25]}  Qe5 {[%clk 0:02:09]} 21. Rf1 {[%clk 0:01:17]}  h5 {[%clk 0:02:00]} 22. h4 {[%clk 0:01:15]}  Rd8 {[%clk 0:01:56]} 23. a4 {[%clk 0:01:14]}  Rd4 {[%clk 0:01:53]} 24. Qc3 {[%clk 0:01:08]}  Qd5+ {[%clk 0:01:01]} 25. f3 {[%clk 0:01:07]}  g5 {[%clk 0:00:57]} 26. hxg5 {[%clk 0:00:39]}  Qxg5 {[%clk 0:00:58]} 27. Rh1 {[%clk 0:00:20]}  h4 {[%clk 0:00:55]} 28. Qe1 {[%clk 0:00:21]}  Kf8 {[%clk 0:00:43]} 29. Rh3 {[%clk 0:00:21]}  Ke7 {[%clk 0:00:40]} 30. Kh2 {[%clk 0:00:20]}  hxg3+ {[%clk 0:00:36]} 31. Qxg3 {[%clk 0:00:21]}  Qf5 {[%clk 0:00:30]} 32. Rh4 {[%clk 0:00:17]}  Rd7 {[%clk 0:00:26]} 33. Rf4 {[%clk 0:00:16]}  Qh7+ {[%clk 0:00:20]} 34. Qh4+ {[%clk 0:00:16]}  Qxh4+ {[%clk 0:00:20]} 35. Rxh4 {[%clk 0:00:17]}  Kf6 {[%clk 0:00:20]} 36. Kg3 {[%clk 0:00:17]}  Ke5 {[%clk 0:00:19]} 37. Kf2 {[%clk 0:00:15]}  f5 {[%clk 0:00:18]} 38. Ke3 {[%clk 0:00:14]}  Rg7 {[%clk 0:00:18]} 39. c3 {[%clk 0:00:13]}  Kd5 {[%clk 0:00:18]} 40. d4 {[%clk 0:00:13]}  cxd4+ {[%clk 0:00:15]} 41. Rxd4+ {[%clk 0:00:12]}  Kc5 {[%clk 0:00:16]} 42. b4+ {[%clk 0:00:12]}  Kc6 {[%clk 0:00:16]} 43. Rd8 {[%clk 0:00:12]}  Rg1 {[%clk 0:00:13]} 44. Ra8 {[%clk 0:00:12]}  Kb7 {[%clk 0:00:08]} 45. Re8 {[%clk 0:00:12]}  Re1+ {[%clk 0:00:04]} 46. Kd4 {[%clk 0:00:12]}  Kc7 {[%clk 0:00:03]} 47. Re7+ {[%clk 0:00:12]}  Kc6 {[%clk 0:00:02]} 48. Rxa7 {[%clk 0:00:11]}  e5+ {[%clk 0:00:03]} 49. Kd3 {[%clk 0:00:10]}  Rd1+ {[%clk 0:00:03]} 50. Ke2 {[%clk 0:00:09]}  Rc1 {[%clk 0:00:04]} 51. Kd2 {[%clk 0:00:08]}  Rf1 {[%clk 0:00:04]} 52. Ke2 {[%clk 0:00:05]}  Rc1 {[%clk 0:00:04]} 53. Kd3 {[%clk 0:00:05]}  Rf1 {[%clk 0:00:03]} 54. Ke3 {[%clk 0:00:05]}  Rc1 {[%clk 0:00:03]} 55. b5+ {[%clk 0:00:04]}  Kd6 {[%clk 0:00:01]} 56. Rb7 {[%clk 0:00:04]}  Rxc3+ {[%clk 0:00:02]} 57. Ke2 {[%clk 0:00:04]}  Kc5 {[%clk 0:00:01]} 58. Rc7+ {[%clk 0:00:04]}  Kb4 {[%clk 0:00:01]} 59. Rxc3 {[%clk 0:00:05]}  Kxc3 {[%clk 0:00:02]} 60. a5 {[%clk 0:00:05]}  bxa5 {[%clk 0:00:02]} 61. b6 {[%clk 0:00:06]}  a4 {[%clk 0:00:03]} 62. b7 {[%clk 0:00:07]}  a3 {[%clk 0:00:04]} 63. b8=Q {[%clk 0:00:07]}  a2 {[%clk 0:00:05]} 64. Qxe5+ {[%clk 0:00:05]}  Kb3 {[%clk 0:00:06]} 65. Qa1 {[%clk 0:00:06]}  Ka3 {[%clk 0:00:05]} 66. Kd3 {[%clk 0:00:06]}  Kb3 {[%clk 0:00:06]} 67. Kd4 {[%clk 0:00:06]}  Kb4 {[%clk 0:00:06]} 68. Qxa2 {[%clk 0:00:06]}  Kb5 {[%clk 0:00:07]} 69. Qb2+ {[%clk 0:00:06]}  Kc6 {[%clk 0:00:05]} 70. Ke5 {[%clk 0:00:07]} 1-0


[Site "https://www.chess.com"]

[Event "Titled Tuesday Blitz May 16 Early 2023"]
[White "Kriti Mayur Patel"]
[Black "Pein, Jonathan"]
[WhiteFideId "35061780"]
[BlackFideId "417092"]
[WhiteElo "1306"]
[BlackElo "2151"]
[Result "0-1"]
[Round "09"]
[TimeControl "180+2"]
[Date "2023.05.16"]
[WhiteClock "0:00:14"]
[BlackClock "0:01:21"]

1. e4 {[%clk 0:03:00]}  e5 {[%clk 0:02:59]} 2. Nf3 {[%clk 0:02:59]}  d6 {[%clk 0:03:00]} 3. Bc4 {[%clk 0:03:00]}  Nf6 {[%clk 0:03:00]} 4. d3 {[%clk 0:02:59]}  Be7 {[%clk 0:02:58]} 5. O-O {[%clk 0:02:59]}  O-O {[%clk 0:02:58]} 6. a4 {[%clk 0:02:57]}  Nc6 {[%clk 0:02:58]} 7. a5 {[%clk 0:02:56]}  a6 {[%clk 0:02:55]} 8. c3 {[%clk 0:02:53]}  Kh8 {[%clk 0:02:55]} 9. b4 {[%clk 0:02:52]}  Ng8 {[%clk 0:02:54]} 10. d4 {[%clk 0:02:50]}  exd4 {[%clk 0:02:52]} 11. Nxd4 {[%clk 0:02:49]}  Bf6 {[%clk 0:02:36]} 12. Nxc6 {[%clk 0:02:45]}  bxc6 {[%clk 0:02:37]} 13. f4 {[%clk 0:02:42]}  Qe7 {[%clk 0:02:35]} 14. Qd3 {[%clk 0:02:40]}  Re8 {[%clk 0:02:31]} 15. Re1 {[%clk 0:02:31]}  d5 {[%clk 0:02:31]} 16. Bb3 {[%clk 0:02:26]}  dxe4 {[%clk 0:02:31]} 17. Qc4 {[%clk 0:02:26]}  Be6 {[%clk 0:02:29]} 18. Qxc6 {[%clk 0:02:18]}  Bxb3 {[%clk 0:02:27]} 19. Nd2 {[%clk 0:02:18]}  Qe6 {[%clk 0:02:15]} 20. Qxc7 {[%clk 0:02:10]}  Rac8 {[%clk 0:02:12]} 21. Qb6 {[%clk 0:01:41]}  Bxc3 {[%clk 0:02:11]} 22. Rb1 {[%clk 0:01:28]}  Bc2 {[%clk 0:02:07]} 23. b5 {[%clk 0:00:58]}  Bxb1 {[%clk 0:02:02]} 24. bxa6 {[%clk 0:00:53]}  e3 {[%clk 0:01:53]} 25. Nf1 {[%clk 0:00:39]}  Bxe1 {[%clk 0:01:51]} 26. Bxe3 {[%clk 0:00:37]}  Qxb6 {[%clk 0:01:50]} 27. axb6 {[%clk 0:00:36]}  Bd3 {[%clk 0:01:47]} 28. a7 {[%clk 0:00:29]}  Ba6 {[%clk 0:01:41]} 29. Bd4 {[%clk 0:00:22]}  Ba5 {[%clk 0:01:37]} 30. Ne3 {[%clk 0:00:17]}  Rcd8 {[%clk 0:01:34]} 31. Bc5 {[%clk 0:00:16]}  Nf6 {[%clk 0:01:31]} 32. Nf5 {[%clk 0:00:15]}  Bb7 {[%clk 0:01:20]} 33. Nd6 {[%clk 0:00:15]}  Rxd6 {[%clk 0:01:20]} 34. Bxd6 {[%clk 0:00:15]}  Bxb6+ {[%clk 0:01:20]} 35. Kf1 {[%clk 0:00:14]}  Ba6# {[%clk 0:01:21]} 0-1


[Site "https://www.chess.com"]

[Event "Titled Tuesday Blitz May 16 Early 2023"]
[White "Castillo Pena, Patricia Evarista"]
[Black "Ciuffoletti, Paolo"]
[WhiteFideId "6412106"]
[BlackFideId "807630"]
[WhiteElo "1919"]
[BlackElo "2143"]
[Result "0-1"]
[Round "09"]
[TimeControl "180+2"]
[Date "2023.05.16"]
[WhiteClock "0:00:00"]
[BlackClock "0:00:32"]

1. d4 {[%clk 0:02:58]}  d5 {[%clk 0:02:59]} 2. Nf3 {[%clk 0:02:49]}  Nf6 {[%clk 0:02:58]} 3. e3 {[%clk 0:02:38]}  c5 {[%clk 0:02:56]} 4. Bd3 {[%clk 0:02:36]}  Nc6 {[%clk 0:02:55]} 5. b3 {[%clk 0:02:31]}  g6 {[%clk 0:02:52]} 6. Bb2 {[%clk 0:02:25]}  Bg7 {[%clk 0:02:50]} 7. Nbd2 {[%clk 0:02:22]}  O-O {[%clk 0:02:32]} 8. O-O {[%clk 0:02:21]}  Bg4 {[%clk 0:02:27]} 9. h3 {[%clk 0:02:20]}  Bxf3 {[%clk 0:02:26]} 10. Nxf3 {[%clk 0:02:19]}  Ne4 {[%clk 0:02:22]} 11. a3 {[%clk 0:02:06]}  a6 {[%clk 0:01:57]} 12. Rb1 {[%clk 0:02:00]}  b5 {[%clk 0:01:53]} 13. dxc5 {[%clk 0:01:50]}  Bxb2 {[%clk 0:01:42]} 14. Rxb2 {[%clk 0:01:50]}  Nxc5 {[%clk 0:01:39]} 15. Qe2 {[%clk 0:01:09]}  e5 {[%clk 0:01:03]} 16. Bxb5 {[%clk 0:00:25]}  axb5 {[%clk 0:00:55]} 17. Qxb5 {[%clk 0:00:26]}  Qd6 {[%clk 0:00:53]} 18. Rd1 {[%clk 0:00:12]}  Rfb8 {[%clk 0:00:43]} 19. Qe2 {[%clk 0:00:12]}  Na4 {[%clk 0:00:40]} 20. Rbb1 {[%clk 0:00:10]}  Nc3 {[%clk 0:00:39]} 21. Qd2 {[%clk 0:00:09]}  Nxb1 {[%clk 0:00:38]} 22. Rxb1 {[%clk 0:00:10]}  Rxa3 {[%clk 0:00:36]} 23. Rd1 {[%clk 0:00:00]}  Rd8 {[%clk 0:00:32]} 0-1


[Site "https://www.chess.com"]

[Event "Titled Tuesday Blitz May 16 Early 2023"]
[White "Benaddi, Mouhcine"]
[Black "Vargas, Mauricio"]
[WhiteFideId "9001050"]
[BlackFideId "4404572"]
[WhiteElo "2036"]
[BlackElo "1986"]
[Result "1-0"]
[Round "09"]
[TimeControl "180+2"]
[Date "2023.05.16"]
[WhiteClock "0:01:26"]
[BlackClock "0:00:06"]

1. Nf3 {[%clk 0:02:57]}  d5 {[%clk 0:02:10]} 2. d4 {[%clk 0:02:56]}  Nd7 {[%clk 0:02:01]} 3. c4 {[%clk 0:02:54]}  c6 {[%clk 0:02:00]} 4. cxd5 {[%clk 0:02:50]}  cxd5 {[%clk 0:01:57]} 5. Nc3 {[%clk 0:02:51]}  Ngf6 {[%clk 0:01:52]} 6. Bg5 {[%clk 0:02:50]}  a6 {[%clk 0:01:51]} 7. e3 {[%clk 0:02:48]}  h6 {[%clk 0:01:49]} 8. Bh4 {[%clk 0:02:48]}  g5 {[%clk 0:01:49]} 9. Bg3 {[%clk 0:02:47]}  b5 {[%clk 0:01:36]} 10. h4 {[%clk 0:02:34]}  g4 {[%clk 0:01:35]} 11. Ne5 {[%clk 0:02:34]}  Nxe5 {[%clk 0:01:31]} 12. dxe5 {[%clk 0:02:31]}  Ne4 {[%clk 0:01:29]} 13. Qxd5 {[%clk 0:02:27]}  Nxg3 {[%clk 0:01:18]} 14. fxg3 {[%clk 0:02:17]}  Qb6 {[%clk 0:01:10]} 15. Qxa8 {[%clk 0:02:10]}  Qxe3+ {[%clk 0:01:04]} 16. Be2 {[%clk 0:02:10]}  Qxg3+ {[%clk 0:01:00]} 17. Kd1 {[%clk 0:02:01]}  Kd8 {[%clk 0:00:36]} 18. Kc2 {[%clk 0:01:52]}  Qxe5 {[%clk 0:00:32]} 19. Rad1+ {[%clk 0:01:52]}  Kc7 {[%clk 0:00:29]} 20. Nd5+ {[%clk 0:01:50]}  Kd7 {[%clk 0:00:16]} 21. Nb6+ {[%clk 0:01:45]}  Ke6 {[%clk 0:00:15]} 22. Qxc8+ {[%clk 0:01:44]}  Kf6 {[%clk 0:00:15]} 23. Nd7+ {[%clk 0:01:43]}  Ke6 {[%clk 0:00:10]} 24. Nxe5+ {[%clk 0:01:44]}  Kxe5 {[%clk 0:00:10]} 25. Rhf1 {[%clk 0:01:32]}  e6 {[%clk 0:00:08]} 26. Qc3+ {[%clk 0:01:30]}  Ke4 {[%clk 0:00:06]} 27. Qd4# {[%clk 0:01:26]} 1-0


[Site "https://www.chess.com"]

[Event "Titled Tuesday Blitz May 16 Early 2023"]
[White "Tabatabaei, M. Amin"]
[Black "Andreikin, Dmitry"]
[WhiteFideId "12521213"]
[BlackFideId "4158814"]
[WhiteElo "2575"]
[BlackElo "2736"]
[Result "1-0"]
[Round "10"]
[TimeControl "180+2"]
[Date "2023.05.16"]
[WhiteClock "0:00:10"]
[BlackClock "0:00:00"]

1. c4 {[%clk 0:03:00]}  e5 {[%clk 0:02:57]} 2. g3 {[%clk 0:02:58]}  d6 {[%clk 0:02:55]} 3. Nc3 {[%clk 0:02:57]}  Nc6 {[%clk 0:02:52]} 4. Bg2 {[%clk 0:02:55]}  g6 {[%clk 0:02:52]} 5. Rb1 {[%clk 0:02:55]}  a5 {[%clk 0:02:50]} 6. e3 {[%clk 0:02:54]}  Bg7 {[%clk 0:02:50]} 7. Nge2 {[%clk 0:02:54]}  Nge7 {[%clk 0:02:50]} 8. O-O {[%clk 0:02:53]}  h5 {[%clk 0:02:47]} 9. h4 {[%clk 0:02:50]}  Bg4 {[%clk 0:02:44]} 10. a3 {[%clk 0:02:48]}  Qd7 {[%clk 0:02:40]} 11. b4 {[%clk 0:02:48]}  axb4 {[%clk 0:02:40]} 12. axb4 {[%clk 0:02:49]}  g5 {[%clk 0:02:38]} 13. hxg5 {[%clk 0:02:40]}  h4 {[%clk 0:02:38]} 14. f3 {[%clk 0:02:38]}  Bf5 {[%clk 0:02:09]} 15. Ne4 {[%clk 0:02:12]}  Bxe4 {[%clk 0:01:55]} 16. fxe4 {[%clk 0:02:13]}  Qg4 {[%clk 0:01:55]} 17. Nc3 {[%clk 0:01:32]}  Qxg5 {[%clk 0:01:48]} 18. Qf3 {[%clk 0:01:32]}  hxg3 {[%clk 0:01:30]} 19. Nd5 {[%clk 0:01:18]}  O-O-O {[%clk 0:01:11]} 20. b5 {[%clk 0:01:03]}  Nxd5 {[%clk 0:00:53]} 21. bxc6 {[%clk 0:01:01]}  Nf4 {[%clk 0:00:52]} 22. exf4 {[%clk 0:00:23]}  exf4 {[%clk 0:00:50]} 23. cxb7+ {[%clk 0:00:19]}  Kb8 {[%clk 0:00:48]} 24. Rd1 {[%clk 0:00:20]}  Bd4+ {[%clk 0:00:27]} 25. Kf1 {[%clk 0:00:21]}  Rh2 {[%clk 0:00:24]} 26. Qa3 {[%clk 0:00:20]}  Ba7 {[%clk 0:00:18]} 27. Ra1 {[%clk 0:00:18]}  Qc5 {[%clk 0:00:18]} 28. Qxc5 {[%clk 0:00:15]}  dxc5 {[%clk 0:00:14]} 29. Ra3 {[%clk 0:00:14]}  Rd4 {[%clk 0:00:13]} 30. Rf3 {[%clk 0:00:09]}  Rxc4 {[%clk 0:00:04]} 31. Rxf4 {[%clk 0:00:10]}  Rc2 {[%clk 0:00:04]} 32. e5 {[%clk 0:00:08]}  c4 {[%clk 0:00:03]} 33. e6 {[%clk 0:00:08]}  Bc5 {[%clk 0:00:01]} 34. exf7 {[%clk 0:00:08]}  c3 {[%clk 0:00:02]} 35. f8=Q+ {[%clk 0:00:08]}  Bxf8 {[%clk 0:00:02]} 36. Rxf8+ {[%clk 0:00:09]}  Ka7 {[%clk 0:00:03]} 37. b8=Q+ {[%clk 0:00:10]}  Ka6 {[%clk 0:00:00]} 38. Qb7+ {[%clk 0:00:10]} 1-0


[Site "https://www.chess.com"]

[Event "Titled Tuesday Blitz May 16 Early 2023"]
[White "Drygalov, Sergey"]
[Black "Dubov, Daniil"]
[WhiteFideId "24171743"]
[BlackFideId "24126055"]
[WhiteElo "2533"]
[BlackElo "2793"]
[Result "1/2-1/2"]
[Round "10"]
[TimeControl "180+2"]
[Date "2023.05.16"]
[WhiteClock "0:00:05"]
[BlackClock "0:00:04"]

1. d4 {[%clk 0:02:58]}  Nf6 {[%clk 0:02:59]} 2. c4 {[%clk 0:02:58]}  e6 {[%clk 0:02:58]} 3. Nf3 {[%clk 0:02:59]}  d5 {[%clk 0:02:58]} 4. Nc3 {[%clk 0:02:59]}  c6 {[%clk 0:02:56]} 5. e3 {[%clk 0:02:58]}  Nbd7 {[%clk 0:02:56]} 6. Qc2 {[%clk 0:02:58]}  Bd6 {[%clk 0:02:56]} 7. Bd3 {[%clk 0:02:59]}  O-O {[%clk 0:02:55]} 8. O-O {[%clk 0:02:59]}  dxc4 {[%clk 0:02:56]} 9. Bxc4 {[%clk 0:02:59]}  a6 {[%clk 0:02:57]} 10. e4 {[%clk 0:02:47]}  e5 {[%clk 0:02:43]} 11. Rd1 {[%clk 0:02:44]}  Qc7 {[%clk 0:02:14]} 12. h3 {[%clk 0:02:20]}  b5 {[%clk 0:02:14]} 13. Be2 {[%clk 0:02:16]}  Bb7 {[%clk 0:02:13]} 14. Bg5 {[%clk 0:02:12]}  Rfe8 {[%clk 0:02:11]} 15. dxe5 {[%clk 0:01:59]}  Nxe5 {[%clk 0:02:10]} 16. Nd4 {[%clk 0:01:58]}  b4 {[%clk 0:02:05]} 17. Bxf6 {[%clk 0:01:57]}  bxc3 {[%clk 0:01:54]} 18. Bxg7 {[%clk 0:01:51]}  cxb2 {[%clk 0:01:30]} 19. Qxb2 {[%clk 0:01:50]}  Rab8 {[%clk 0:01:27]} 20. Nf5 {[%clk 0:01:47]}  Bc8 {[%clk 0:01:27]} 21. Qd2 {[%clk 0:00:51]}  Bxf5 {[%clk 0:01:21]} 22. exf5 {[%clk 0:00:49]}  Kxg7 {[%clk 0:01:12]} 23. Qg5+ {[%clk 0:00:40]}  Ng6 {[%clk 0:00:52]} 24. fxg6 {[%clk 0:00:31]}  hxg6 {[%clk 0:00:52]} 25. Bf3 {[%clk 0:00:28]}  Re5 {[%clk 0:00:45]} 26. Qg4 {[%clk 0:00:28]}  Rbe8 {[%clk 0:00:43]} 27. Rac1 {[%clk 0:00:24]}  Qe7 {[%clk 0:00:36]} 28. Qc4 {[%clk 0:00:16]}  Re1+ {[%clk 0:00:16]} 29. Rxe1 {[%clk 0:00:16]}  Qxe1+ {[%clk 0:00:16]} 30. Qf1 {[%clk 0:00:17]}  Qe5 {[%clk 0:00:14]} 31. g3 {[%clk 0:00:17]}  Bc5 {[%clk 0:00:15]} 32. Kg2 {[%clk 0:00:17]}  Rb8 {[%clk 0:00:14]} 33. Qc4 {[%clk 0:00:13]}  Bd4 {[%clk 0:00:12]} 34. Rc2 {[%clk 0:00:13]}  c5 {[%clk 0:00:11]} 35. Qxa6 {[%clk 0:00:12]}  Qe1 {[%clk 0:00:09]} 36. Re2 {[%clk 0:00:12]}  Qc1 {[%clk 0:00:09]} 37. g4 {[%clk 0:00:03]}  Rb1 {[%clk 0:00:08]} 38. Kg3 {[%clk 0:00:03]}  Qg1+ {[%clk 0:00:05]} 39. Bg2 {[%clk 0:00:04]}  Rc1 {[%clk 0:00:06]} 40. Qc6 {[%clk 0:00:02]}  Rc3+ {[%clk 0:00:05]} 41. f3 {[%clk 0:00:03]}  Qd1 {[%clk 0:00:05]} 42. Qe4 {[%clk 0:00:03]}  Rd3 {[%clk 0:00:05]} 43. h4 {[%clk 0:00:03]}  c4 {[%clk 0:00:05]} 44. h5 {[%clk 0:00:03]}  Rd2 {[%clk 0:00:03]} 45. Rxd2 {[%clk 0:00:03]}  Qxd2 {[%clk 0:00:04]} 46. hxg6 {[%clk 0:00:03]}  f6 {[%clk 0:00:04]} 47. Qe7+ {[%clk 0:00:03]}  Kxg6 {[%clk 0:00:05]} 48. Qe8+ {[%clk 0:00:04]}  Kg7 {[%clk 0:00:04]} 49. Qe7+ {[%clk 0:00:04]}  Kh6 {[%clk 0:00:05]} 50. Qf8+ {[%clk 0:00:05]}  Kh7 {[%clk 0:00:05]} 51. Qf7+ {[%clk 0:00:05]}  Kh8 {[%clk 0:00:06]} 52. Qf8+ {[%clk 0:00:03]}  Kh7 {[%clk 0:00:06]} 53. f4 {[%clk 0:00:02]}  Qe1+ {[%clk 0:00:04]} 54. Kh3 {[%clk 0:00:02]}  Qe3+ {[%clk 0:00:05]} 55. Kh4 {[%clk 0:00:02]}  Qe1+ {[%clk 0:00:04]} 56. Kh3 {[%clk 0:00:02]}  Qe3+ {[%clk 0:00:04]} 57. Kh4 {[%clk 0:00:03]}  Qxf4 {[%clk 0:00:03]} 58. Qf7+ {[%clk 0:00:04]}  Kh8 {[%clk 0:00:04]} 59. Qf8+ {[%clk 0:00:04]}  Kh7 {[%clk 0:00:04]} 60. Qe7+ {[%clk 0:00:04]}  Kg8 {[%clk 0:00:03]} 61. Qe8+ {[%clk 0:00:05]}  Kg7 {[%clk 0:00:04]} 62. Qe7+ {[%clk 0:00:05]}  Kh6 {[%clk 0:00:04]} 63. Qf8+ {[%clk 0:00:05]}  Kh7 {[%clk 0:00:04]} 1/2-1/2


[Site "https://www.chess.com"]